Cogmind - Beta 15 @@@ ROGUE MODE // 2025.07.14 @ 22:50:03 Player: daxter767676 Result: Destroyed self via exploding Nuclear Reactor Performance ------------- Evolutions (4) 2000 Regions Visited (4) 800 Robots Destroyed (39) 195 Value Destroyed (1307) 1307 Prototype IDs (8) 160 Alien Tech Used (0) 0 Bonus (716) 716 TOTAL SCORE: 5178 Bonus ------- Follower Combat Kills 416 Registered with UFD 300 Cogmind --------- Core Integrity 0/850 Matter 228/300 Energy 17/100 System Corruption 37% Temperature Cool (0) Movement Core (1450) Ox28 Location -6/Factory Parts ------- > --- POWER (2) -------- (None) > --- PROPULSION (4) --- (None) > --- UTILITY (6) ------ Huge Storage Unit Transport Network Coupler Target Analyzer Component Analysis Suite > --- WEAPON (3) ------- Improved Grenade Launcher > --- INVENTORY (25) --- Micro Nuclear Core Light Angular Momentum Engine Fusion Compressor Carbon-fiber Leg Scrap Suit Scrap Suit Energy Well (350) Enhanced Optical Array IFF Parser Advanced Terrain Scanner Improved Terrain Scan Processor Hardened Heavy Armor Plating System Guard Field Recycling Unit (0) Drone Bay (2/2) Heavy Rocket Launcher CPS Tube (2) CPS Tube (2) Peak State ------------ > --- POWER ------------ Fission Core Light Fission Core > --- PROPULSION ------- Wheel Wheel Compact Wheel Compact Wheel > --- UTILITY ---------- Improved Heat Sink Huge Storage Unit Transport Network Coupler Improved Melee Analysis Suite Advanced Melee Analysis Suite Target Analyzer > --- WEAPON ----------- Power Maul Power Sword Heavy Pick > --- INVENTORY -------- Micro Nuclear Core Angular Momentum Engine Light Angular Momentum Engine Fusion Compressor Armored Treads Carbon-fiber Leg Scrap Suit Scrap Suit Energy Well Enhanced Optical Array IFF Parser Advanced Terrain Scanner Hardened Heavy Armor Plating Component Analysis Suite System Guard Field Recycling Unit Drone Bay Heavy Assault Rifle Improved Grenade Launcher Heavy Rocket Launcher CPS Tube CPS Tube [Rating: 55] Favorites ----------- Power Ion Engine Engine Ion Engine Power Core Light Nuclear Core Propulsion Compact Wheel Treads Armored Treads Leg Aluminum Leg Wheel Compact Wheel Hover Unit Gravmag System Utility Light Humpback Device Component Analysis Suite Storage Light Humpback Processor Transport Network Coupler Protection Improved Light Armor Plating Weapon Great Maul Energy Gun Gatling Laser Ballistic Gun Assault Rifle Launcher Heavy Rocket Launcher Special Weapon Mining Laser Impact Weapon Great Maul Slashing Weapon Katana Piercing Weapon Heavy Pick Build | -11 -10 -10 -9 -6 ------- Run | Yrd Mat Sub Scr Fac Slots Evolved 8 | . . . . 8 Power 1 | . . . . 1 Propulsion 2 | . . . . 2 Utility 4 | . . . . 4 Weapon 1 | . . . . 1 Parts Attached 62 | . 11 . 5 46 Power 15 | . 2 . 1 12 Engine 8 | . 1 . 1 6 Core 7 | . 1 . . 6 Reactor . | . . . . . Propulsion 13 | . 4 . 1 8 Treads 1 | . . . . 1 Leg 2 | . 2 . . . Wheel 9 | . 2 . 1 6 Hover 1 | . . . . 1 Flight . | . . . . . Utility 18 | . 4 . 1 13 Device 7 | . 1 . . 6 Storage 4 | . 2 . 1 1 Processor 5 | . . . . 5 Hackware . | . . . . . Protection 2 | . 1 . . 1 Artifact . | . . . . . Weapon 16 | . 1 . 2 13 Energy Gun 3 | . . . . 3 Energy Cannon . | . . . . . Ballistic Gun 1 | . . . . 1 Ballistic Cannon . | . . . . . Launcher 2 | . . . . 2 Special Weapon 1 | . 1 . . . Impact Weapon 5 | . . . 1 4 Slashing Weapon 3 | . . . 1 2 Piercing Weapon 1 | . . . . 1 Special Melee Weapon . | . . . . . Unidentified Prototypes 2 | . . . . 2 Parts Lost 37 | . 3 . . 34 Power 7 | . 1 . . 6 Propulsion 12 | . 1 . . 11 Utility 9 | . . . . 9 Weapon 9 | . 1 . . 8 Highest Loss Streak 9 | . 2 . . 9 To Critical Strikes . | . . . . . Average Backups 18 | 6 8 12 20 20 Power 1 | 1 1 1 1 2 Propulsion 3 | 4 4 4 4 1 Utility 8 | . 2 6 9 10 Weapon 3 | 1 1 1 4 3 Tool/Special . | . . . . . Unused Backups 71 | . 5 . 26 40 Power 9 | . 1 . 4 4 Propulsion 12 | . 2 . 5 5 Utility 32 | . 2 . 10 20 Weapon 15 | . . . 7 8 Tool/Special 3 | . . . . 3 Average Slot Usage (%) 78 | . 96 100 75 74 Engine 9 | . 7 14 14 6 Core 2 | . 5 . . 3 Leg 2 | . 18 . . . Wheel 14 | . 8 28 17 12 Device 4 | . 6 . . 9 Storage 10 | . 14 14 14 6 Processor 5 | . . . . 13 Protection 2 | . 6 14 . 1 Energy Gun 1 | . 6 . . 1 Ballistic Gun 2 | . 14 14 . . Special Weapon 1 | . 6 14 . . Impact Weapon 9 | . . . 13 10 Slashing Weapon 6 | . . . 13 3 Peak Build Rating 55 | 6 11 9 25 55 Average Rating 27 | 6 9 9 19 42 On Entrance 10 | 6 6 9 9 24 Naked Turns . | . . . . . Heaviest Build 119 | 14 95 95 95 119 Greatest Support 54 | 20 26 26 28 54 Greatest Overweight (x) 10 | . 3 3 3 10 Average Overweight (x) 1 | . 1 3 1 2 Largest Inventory Capacity 25 | 8 25 25 25 25 Average Capacity 23 | 8 13 25 25 24 Most Carried 25 | 6 12 14 25 25 Average Carried 19 | 6 8 12 20 23 Final Capacity 25 | 8 25 25 25 25 Final Carried 25 | 6 12 14 25 21 Class Distribution -------------------- 74% | Mutant 14% | Scavenger-Gladiator 9% | Gladiator Dominant Class ---------------- Mutant | -10/Materials Mutant | -10/Subcaves Mutant | -9/Scraptown Mutant | -6/Factory Resources | -11 -10 -10 -9 -6 ----------- Run | Yrd Mat Sub Scr Fac Matter Collected 1127 | 200 199 8 239 481 Remotely . | . . . . . Salvage Created 2022 | . 309 . . 1713 Parts 64 | . 15 . . 49 Haulers Intercepted 2 | . 1 . . 1 Recyclers Shooed 5 | . 1 . . 4 Parts Field Recycled . | . . . . . Retrieved Matter . | . . . . . Parts Self-Destructed . | . . . . . Prevented . | . . . . . Kills | -11 -10 -10 -9 -6 ------- Run | Yrd Mat Sub Scr Fac Combat Hostiles Destroyed 24 | . 5 . . 19 Melee 12 | . . . . 12 Guns 7 | . 5 . . 2 AOE 1 | . . . . 1 Classes Destroyed 10 | . 3 . . 7 Worker 5 | . . . . 5 Hauler 2 | . 1 . . 1 Recycler 7 | . 1 . . 6 Watcher 1 | . . . . 1 Swarmer 4 | . . . . 4 Grunt 11 | . 5 . . 6 Duelist 1 | . . . . 1 Sentry 1 | . . . . 1 Hunter 2 | . . . . 2 Programmer 5 | . . . . 5 Best Kill Streak 6 | . 3 . . 6 Combat Bots Only 5 | . 3 . . 5 Max Kills in Single Turn 1 | . 1 . . 1 Gunslinging . | . . . . . Exploded 1 | . . . . 1 Melee 1 | . . . . 1 Uniques/NPCs Destroyed . | . . . . . Combat | -11 -10 -10 -9 -6 -------- Run | Yrd Mat Sub Scr Fac Hostile Shots Fired 362 | . 55 . . 307 Missed 120 | . 16 . . 104 Hits 242 | . 39 . . 203 Melee 5 | . . . . 5 Projectile 237 | . 39 . . 198 Critical Strikes 12 | . . . . 12 Part Disruptions 2 | . . . . 2 Damage Taken 4329 | . 454 . . 3875 Core 971 | . 108 . . 863 Absorbed by Shields . | . . . . . Regen/Repaired (Parts) 52 | . . . . 52 Core Remaining (%) 78 | 100 . . 56 . Volleys Fired 53 | . 35 . . 18 Largest 2 | . 2 . . 1 Hottest 100 | . 100 . . 69 Shots Fired 75 | . 57 . . 18 Gun 70 | . 54 . . 16 Cannon . | . . . . . Launcher 2 | . . . . 2 Special 3 | . 3 . . . Kinetic 41 | . 33 . . 8 Thermal 32 | . 24 . . 8 Explosive 2 | . . . . 2 Electromagnetic . | . . . . . Robot Hit Streak 11 | . 11 . . 7 Robot Miss Streak 3 | . 3 . . 2 Penetration Max . | . . . . . Secondary Targets 1 | . 1 . . . Max Gunslinging Chain 1 | . 1 . . . Shots Hit Robots 113 | . 38 . . 75 Core Hits 37 | . 15 . . 22 Critical Kills 4 | . . . . 4 Critical Parts Destroyed 14 | . . . . 14 Critical Strikes 20 | . 2 . . 18 Burn 2 | . 2 . . . Smash 18 | . . . . 18 Melee Attacks 107 | . . . . 107 Impact 83 | . . . . 83 Slashing 16 | . . . . 16 Piercing 8 | . . . . 8 Sneak Attacks 14 | . . . . 14 Combat Hostiles 1 | . . . . 1 Follow-up Attacks 12 | . . . . 12 Damage Inflicted 4368 | . 482 . . 3886 Guns 684 | . 482 . . 202 Cannons . | . . . . . Explosions 128 | . . . . 128 Melee 3545 | . . . . 3545 Ramming 11 | . . . . 11 Kinetic 398 | . 309 . . 89 Thermal 286 | . 173 . . 113 Explosive 128 | . . . . 128 Electromagnetic . | . . . . . Impact 3253 | . . . . 3253 Slashing 115 | . . . . 115 Piercing 177 | . . . . 177 Highest Corruption 37 | . 2 2 . 37 Average Corruption 3 | . 1 2 . 4 Corruption Purged . | . . . . . Corruption Blocked . | . . . . . Effects 51 | . 10 1 . 40 Message Errors 14 | . . . . 14 Matter Fused 11 | . 1 . . 10 Heat Flow Errors 6 | . 2 1 . 3 Energy Discharges 7 | . 3 . . 4 Data Loss (minor) 9 | . 1 . . 8 Data Loss (major) 1 | . 1 . . . Misfires 2 | . 2 . . . Alerts 1 | . . . . 1 Overload Shots . | . . . . . Overflow Damage 1287 | . . . . 1287 Projectiles . | . . . . . Explosions . | . . . . . Melee 1287 | . . . . 1287 Knockbacks 17 | . . . . 17 Impact 15 | . . . . 15 Kinetic . | . . . . . Secondary 2 | . . . . 2 Self-Inflicted Damage 133 | . . . . 133 Shots 3 | . . . . 3 Rammed 1 | . . . . 1 Targets Rammed 1 | . . . . 1 Kicked . | . . . . . Crushed . | . . . . . Highest Temperature 244 | . 239 244 . 213 Average Temperature 75 | . 60 133 . 94 Received Heat Transfer 798 | . 243 . . 555 Siege Activations . | . . . . . Martial Activations . | . . . . . Shielding Activations . | . . . . . Robots Disrupted . | . . . . . Combat Hostiles . | . . . . . Robots Corrupted 10 | . . . . 10 Combat Hostiles 4 | . . . . 4 Parts Fried 11 | . . . . 11 Impact Corruptions 38 | . . . . 38 Robots Melted . | . . . . . Combat Hostiles . | . . . . . Parts Melted 4 | . 1 . . 3 Heat Transferred 851 | . 666 . . 185 Parts Sabotaged . | . . . . . Parts Stolen . | . . . . . Parts Stripped . | . . . . . Power Chain Reactions . | . . . . . Alert | -11 -10 -10 -9 -6 ------- Run | Yrd Mat Sub Scr Fac Maximum Alert Level 1 | . . . . 1 Low Security (%) 93 | 100 100 . . 91 Level 1 6 | . . . . 8 Level 2 . | . . . . . Level 3 . | . . . . . Level 4 . | . . . . . Level 5 . | . . . . . High Security . | . . . . . Max Security . | . . . . . Peak Influence 324 | . 42 . . 324 Initial . | . . . . . Average 90 | . 5 . . 121 Influence Increases 1450 | . 185 . . 1265 Destroy 0b10 Robot/C 720 | . 100 . . 620 Destroy 0b10 Robot/NC 105 | . 10 . . 95 Destroy Leader 198 | . 32 . . 166 Allied During Kill 54 | . . . . 54 Successful Hack 72 | . 8 . . 64 Select Force Hacks 50 | . 30 . . 20 Disable Machine 75 | . . . . 75 Destroy Structure 71 | . 5 . . 66 Lose Combat Pursuer 105 | . . . . 105 Influence Decreases 1320 | . 179 6 . 1135 Entered New Map 4 | . . 4 . . Time Decay 776 | . 149 2 . 625 Lost Part 370 | . 30 . . 340 Lost Ally 20 | . . . . 20 Purge Threat 150 | . . . . 150 Squads Dispatched 17 | . 6 . . 11 Investigation 8 | . 6 . . 2 Extermination 6 | . . . . 6 Reinforcement 3 | . . . . 3 Assault . | . . . . . Garrison . | . . . . . Intercept . | . . . . . Searches Triggered . | . . . . . Construction Impeded 1 | . . . . 1 Haulers Reinforced . | . . . . . Active Scanning Responses . | . . . . . Cargo Convoy Interrupts . | . . . . . Stealth | -11 -10 -10 -9 -6 --------- Run | Yrd Mat Sub Scr Fac Distress Signals 2 | . 1 . . 1 Communications Jammed . | . . . . . Distress Signals . | . . . . . Times Spotted 66 | . 19 . . 47 Peak Tracking Total 6 | . 6 . . 5 Tactical Retreats 4 | . . . . 4 Traps | -11 -10 -10 -9 -6 ------- Run | Yrd Mat Sub Scr Fac Traps Triggered 4 | . 2 . . 2 Indirectly . | . . . . . Trap Hack Attempts . | . . . . . Triggered . | . . . . . Disarmed . | . . . . . Reprogrammed . | . . . . . Reused . | . . . . . Traps Extracted . | . . . . . Installed . | . . . . . Triggered . | . . . . . Machines | -11 -10 -10 -9 -6 ---------- Run | Yrd Mat Sub Scr Fac Machines Disabled 5 | . . . . 5 Max in Single Turn 4 | . . . . 4 Machines Repaired . | . . . . . Machines Dismantled . | . . . . . Machines Sabotaged . | . . . . . Overloaded Fab Kills . | . . . . . Hacking | -11 -10 -10 -9 -6 --------- Run | Yrd Mat Sub Scr Fac Machines Accessed 28 | . 9 . 4 15 Terminals 13 | . 6 . . 7 Fabricators 4 | . . . . 4 Repair Stations 2 | . 1 . . 1 Recycling Units 3 | . 2 . . 1 Scanalyzers 1 | . . . . 1 Garrison Access 1 | . . . . 1 Total Hacks 73 | . 26 . 18 29 Successful 43 | . 10 . 18 15 Failed 30 | . 16 . . 14 Catastrophic 2 | . . . . 2 Database Lockouts . | . . . . . Manual 42 | . 24 . . 18 Terminals 34 | . 19 . . 15 Fabricators 7 | . . . . 7 Repair Stations 4 | . 2 . . 2 Recycling Units 7 | . 5 . . 2 Scanalyzers 1 | . . . . 1 Garrison Access 2 | . . . . 2 Terminal Hacks 21 | . 1 . 18 2 Record 13 | . . . 13 . Robot Analysis 4 | . . . 4 . Open DSF 1 | . . . . 1 Branch Access Points 1 | . 1 . . . Unreport Threat 1 | . . . . 1 Proto ID Catalog 1 | . . . 1 . Fabricator Hacks 1 | . . . . 1 Network Status 1 | . . . . 1 Repair Station Hacks 2 | . . . . 2 Scan Component 1 | . . . . 1 Repair 1 | . . . . 1 Recycling Unit Hacks . | . . . . . Scanalyzer . | . . . . . Garrison Access Hacks . | . . . . . Unauthorized Hacks 19 | . 9 . . 10 Terminals 15 | . 7 . . 8 Botnet 5 | . 2 . . 3 Skim 10 | . 5 . . 5 Fabricators 1 | . . . . 1 Download 1 | . . . . 1 Repair Stations 1 | . 1 . . . Patch 1 | . 1 . . . Recycling Units 2 | . 1 . . 1 Tunnel 1 | . 1 . . . Fedlink 1 | . . . . 1 Scanalyzers . | . . . . . Garrison Access . | . . . . . Data Cores Recovered . | . . . . . Used . | . . . . . Hacking Detections 18 | . 7 . . 11 Full Trace Events 2 | . 2 . . . Feedback Events 1 | . 1 . . . Corruption 1 | . 1 . . . Feedback Blocked . | . . . . . Robot Schematics Acquired . | . . . . . Robots Built . | . . . . . Authchips . | . . . . . Time . | . . . . . Total Robot Build Rating . | . . . . . Part Schematics Acquired . | . . . . . Parts Built . | . . . . . Authchips . | . . . . . Time . | . . . . . Total Part Build Rating . | . . . . . Parts Repaired 1 | . . . . 1 Time 50 | . . . . 50 Parts Recycled . | . . . . . Recycled Matter . | . . . . . Retrieved Matter . | . . . . . Retrieved Components . | . . . . . Parts Scanalyzed . | . . . . . Part Schematics Acquired . | . . . . . Parts Damaged . | . . . . . Bothacking | -11 -10 -10 -9 -6 ------------ Run | Yrd Mat Sub Scr Fac Used RIF Installer . | . . . . . Robots Hacked . | . . . . . Non-combat . | . . . . . Combat . | . . . . . Robot Hacks Applied . | . . . . . Relay Couplers Released . | . . . . . Fabnet Peak Effective % . | . . . . . Robots Rewired . | . . . . . Allies Hacked . | . . . . . Hacks Repelled . | . . . . . Allies | -11 -10 -10 -9 -6 -------- Run | Yrd Mat Sub Scr Fac Total Allies 1 | . . . 1 . Largest Group 1 | . . . 1 1 Highest-Rated Group 68 | . . . 68 68 Highest-Rated Ally 68 | . . . 68 68 Total Orders . | . . . . . Ally Attacks 40 | . . . . 40 Total Damage 2013 | . . . . 2013 Kills 18 | . . . . 18 Allies Corrupted . | . . . . . Allies Melted . | . . . . . Intel | -11 -10 -10 -9 -6 ------- Run | Yrd Mat Sub Scr Fac Active Infowar (turns) 2178 | . . . . 2178 T.N.C. 2178 | . . . . 2178 Robot Analysis Total 4 | . . . 4 . Derelict Logs Recovered . | . . . . . Drone Launches . | . . . . . Drone Recoveries . | . . . . . Exploration | -11 -10 -10 -9 -6 ------------- Run | Yrd Mat Sub Scr Fac Turns Passed 7017 | 8 1066 217 2767 2959 Spaces Moved 4578 | 7 688 145 2337 1401 Core . | . . . . . Treads 129 | . . . . 129 Legs 468 | 7 461 . . . Wheels 3978 | . 227 145 2337 1269 Hover 3 | . . . . 3 Flight . | . . . . . Fastest Speed 93 | 120 120 135 105 93 Average Speed 131 | 120 131 135 112 162 Slowest Speed 620 | 120 190 135 135 620 Overloaded Moves . | . . . . . Propulsion Burnouts . | . . . . . Robots Hopped . | . . . . . Potential Cave-ins 2 | . . . . 2 Cave-ins Triggered 2 | . . . . 2 Exploration Rate (%) 47 | 2 87 16 91 39 Regions Visited 4 Branch Regions 2 Pre-discovered Areas 2 | . 1 . 1 . Known Exits Taken . | . . . . . Unknown Exits Taken 4 | 1 1 1 1 . Scrap Searched 5 | . . . 5 . Spaces Dug 28 | . 3 . . 25 Terrain Destroyed 43 | . 3 . . 40 Melee 10 | . . . . 10 Projectile 3 | . 3 . . . AOE 30 | . . . . 30 Terrain Rammed 2 | . . . . 2 Walls Destroyed . | . . . . . Machines Disabled . | . . . . . Actions | -11 -10 -10 -9 -6 --------- Run | Yrd Mat Sub Scr Fac Total 5334 | 6 789 166 2493 1880 Wait 410 | . 45 21 60 284 Move 4574 | 6 687 144 2336 1401 Hop . | . . . . . Pick Up 84 | . 7 1 51 25 Fast Attach 37 | . 4 . 2 31 Attach 13 | . 1 . 2 10 Detach 6 | . . . 5 1 Swap 21 | . 6 . 1 14 Drop 53 | . 4 . 36 13 Fire 53 | . 35 . . 18 Melee 80 | . . . . 80 Ram 2 | . . . . 2 Kick . | . . . . . Crush 1 | . . . . 1 Escape Stasis . | . . . . . Rewire . | . . . . . Trap . | . . . . . Miscellaneous . | . . . . . Route ------- -11/Scrapyard -10/Materials (discovered 5 exits: [*Mat x2] / *Min x2 / [*Sub]) -10/Subcaves -9/Scraptown (discovered 2 exits: *Fac x2) -6/Factory (discovered 2 exits: *Fac x2) History --------- Turn | Location | Event 1 | -11/Scrapyard | Discovered new exit (range 3) 9 | -11/Scrapyard | Entered Materials 10 | -10/Materials | Met a group of wandering Federalists 317 | -10/Materials | Build established: Mutant 366 | -10/Materials | Discovered new exit (range 6) 444 | -10/Materials | Discovered new exit (range 16) 533 | -10/Materials | Discovered new exit (range 15) 611 | -10/Materials | Discovered new exit (range 6) 700 | -10/Materials | Discovered new exit (range 8) 784 | -10/Materials | Identified exit to Mines 1075 | -10/Materials | Entered Subcaves 1076 | -10/Subcaves | Continued accompanying wandering Federalists (3) 1287 | -10/Subcaves | Wandering Federalist uncovered a shortcut to Scraptown 1292 | -10/Subcaves | Entered Scraptown 1292 | -9/Scraptown | System corruption cleaned by C-Scrubber 1577 | -9/Scraptown | Discovered new exit (range 7) 1682 | -9/Scraptown | Visited Cave Peace 1709 | -9/Scraptown | Visited Comm Corps 1801 | -9/Scraptown | Visited CR-KLE's Repair Center 1813 | -9/Scraptown | Visited TADAMA 1838 | -9/Scraptown | Visited Assassins FH 1885 | -9/Scraptown | Learned location of Extension (-4) 1943 | -9/Scraptown | Visited Cyclists 1963 | -9/Scraptown | Visited Junk Repository 2191 | -9/Scraptown | Visited UFD Registry 2191 | -9/Scraptown | Registered with UFD as "Electrotank" 2214 | -9/Scraptown | Visited Chapter 10 2271 | -9/Scraptown | Visited Observation Area 2324 | -9/Scraptown | Visited Science Guys 2500 | -9/Scraptown | Visited Scrapoid Pod Storage 2521 | -9/Scraptown | Visited DA-N13 Charitable Foundation 2532 | -9/Scraptown | Found DCF Scrap (28 items) 2594 | -9/Scraptown | Visited Supply Room 2644 | -9/Scraptown | Visited Analyses Database 2672 | -9/Scraptown | Visited Abandonware Association 2680 | -9/Scraptown | Learned abandonware demo "OVRCLOCK.EXE" 2684 | -9/Scraptown | Learned abandonware demo "HACKBUD.EXE" 2684 | -9/Scraptown | Learned abandonware demo "ERRANTS.EXE" 2714 | -9/Scraptown | Visited Botcube Research 2724 | -9/Scraptown | Found Lrg. Botcube 3810 | -9/Scraptown | Lrg. Botcube activated 3848 | -9/Scraptown | Lrg. Botcube completed mutation into treaded form, armed with 1 gun, 3 cannons. 3976 | -9/Scraptown | Found Scrap Suit 3978 | -9/Scraptown | Found Scrap Suit 4045 | -9/Scraptown | Discovered new exit (range 5) 4059 | -9/Scraptown | Entered Factory 4059 | -6/Factory | Accompanied by 1 ally 4059 | -6/Factory | Evolved 8 slots: Power x1, Propulsion x2, Utility x4, Weapon x1 4870 | -6/Factory | Lost 3 parts (3u) 4958 | -6/Factory | Loaded intel: 8 recycling unit locations 5137 | -6/Factory | Discovered new exit (range 9) 5354 | -6/Factory | Lost 5 parts (1p3n1u) 5536 | -6/Factory | Repaired Drone Bay 5633 | -6/Factory | Build established: Scavenger-Gladiator 6128 | -6/Factory | Core integrity fell below 50% 6160 | -6/Factory | Lost 9 parts (2p3n2u2w) 6384 | -6/Factory | Learned 2 Upper Caves zone layouts 6416 | -6/Factory | Learned Extension security intel 6438 | -6/Factory | Learned location of 1 exit from Proximity Caves 6451 | -6/Factory | Learned 4 Hub_04(d) zone layouts 6454 | -6/Factory | Learned Extension trap positions 6469 | -6/Factory | Learned 2 Proximity Caves zone layouts 6494 | -6/Factory | Identified exit to Factory 6684 | -6/Factory | Build established: Gladiator 6802 | -6/Factory | Crushed by falling debris 6853 | -6/Factory | Crushed by falling debris 6853 | -6/Factory | System corruption reached 10% 6884 | -6/Factory | Lost 3 parts (1u2w) 6977 | -6/Factory | System corruption reached 30% 6985 | -6/Factory | Core integrity fell below 20% 7018 | -6/Factory | Destroyed self via exploding Nuclear Reactor Last Messages --------------- corruption cleaned. 06971_ System corrupted: Component data lost. 06972_ R-10 Processor collects Target Analyzer. 06975_ R-10 Processor collects Imp. Heat Sink. 06978_ Acquired Gravmag System. 06979_ R-10 Processor collects Imp. Heat Sink. 06987_ Arm. Treads destroyed. 06991_ N,P SKS/&I8QOFDD0 YVBG FGE 06991_ Shock Rifle destroyed. 07001_ Gravmag System destroyed. 07006_ System corrupted: Matter fused (-8). 07006_ Gravmag System melted. 07006_ Imp. Heat Sink melted. 07006_ P-60 Hacker destroyed. 07013_ Door malfunctions. 07013_ Hvy. Laser destroyed. 07018_ Nuclear Reactor explodes. 07018_ Target Analyzer melted. 07018_ P-60 Hacker destroyed. 07018_ Nuclear Reactor explodes. Map ----- +----------------------------------------------------+ | ??? /! ###### # """"##????????? | | ?? /! #????# #### # """"#?????????? | | ?? / #????### ###??# # """"#?????????? | | ?? ########+###### + """"#?????????? | | ?? # ## # """"#?????????? | | ??? # ## # """"#?????????? | | ????? # ## # #?????????? | | ???????# # ## # #?????????? | | ???????# # ## #########?????????? | | ???????# # ## #?????????????????? | | ???????+ + ## #?????????????????? | | ???????# # ## #?????????????????? | | ???????# # + #?????????????????? | | ???????# # ##+########??????????? | | ???????# # # #??????????? | | ???????# # # """ #??????????? | | ???????# ############## """"" #??????????? | | ???????# #????????????# """"" #??????????? | | ???????# #????????????# ###????????? | | ???????# % #????????????# # #?????